bitfinex-derivatives/quotes_BNBF0:USTF0_20250710
["timestamp","ask_amount","ask_price","bid_price","bid_amount"]
[1752170730461,1.6621283,675.32,674.52,2.19969294]
[1752170731066,1.6621283,675.33,674.51,2.19969294]
[1752170731265,1.6621283,675.32,674.51,2.19969294]
[1752170731562,1.6621283,675.35,674.49,2.008]
[1752170732562,1.6621283,675.34,674.51,2.19969294]
[1752170733268,1.6621283,675.37,674.54,2.19969294]
[1752170733465,1.6621283,675.38,674.55,2.19969294]
[1752170733665,0.25777587,675.5,674.49,2.008]
[1752170733666,1.6621283,675.42,674.59,2.19969294]
[1752170733867,1.6621283,675.43,674.59,2.19969294]
[1752170735363,1.6621283,675.44,674.59,2.19969294]
[1752170736269,1.6621283,675.44,674.58,2.19969294]
[1752170737369,1.6621283,675.45,674.57,2.19969294]
[1752170741371,1.6621283,675.42,674.65,2.19969294]
[1752170741974,1.6621283,675.41,674.67,2.19969294]
[1752170742374,1.6621283,675.41,674.68,2.19969294]
[1752170742677,1.6621283,675.41,674.67,2.19969294]
[1752170743176,1.6621283,675.41,674.49,2.008]
[1752170743177,1.6621283,675.41,674.66,2.19969294]
[1752170743678,1.6621283,675.41,674.67,2.19969294]
[1752170746075,1.6621283,675.4,674.68,2.19969294]
[1752170746580,1.6621283,675.41,674.66,2.19969294]
[1752170747378,1.6621283,675.41,674.67,2.19969294]
[1752170749077,1.6621283,675.41,674.66,2.19969294]
[1752170749379,1.6621283,675.41,674.67,2.19969294]
[1752170752482,1.6621283,675.4,674.69,2.19969294]
[1752170752979,1.6621283,675.4,674.7,2.19969294]
[1752170754182,1.6621283,675.4,674.69,2.19969294]
[1752170755381,1.6621283,675.42,674.65,2.19969294]
[1752170755584,1.6621283,675.43,674.67,2.19969294]
[1752170756186,1.6621283,675.44,674.67,2.19969294]
[1752170756485,1.6621283,675.43,674.68,2.19969294]
[1752170756681,1.6621283,675.43,674.69,2.19969294]
[1752170758481,1.6621283,675.43,674.68,2.19969294]
[1752170758886,0.25777587,675.5,674.56,2.19969294]
[1752170759383,0.25777587,675.5,674.49,2.008]
[1752170759384,0.25777587,675.5,674.55,2.19969294]
[1752170760089,1.6621283,675.55,674.55,2.19969294]
[1752170760282,0.257731,675.63,674.65,2.19969294]
[1752170761088,0.257731,675.63,674.66,2.19969294]
[1752170761285,0.257731,675.63,674.65,2.19969294]
[1752170761686,0.257731,675.63,674.64,2.19969294]
[1752170762186,1.6621283,675.59,674.76,2.19969294]
[1752170762388,1.6621283,675.59,674.77,2.19969294]
[1752170762690,1.6621283,675.55,674.73,2.19969294]
[1752170763189,1.6621283,675.5,674.68,2.19969294]
[1752170763887,1.6621283,675.48,674.73,2.19969294]
[1752170764385,1.6621283,675.48,674.72,2.19969294]
[1752170765488,1.6621283,675.44,674.68,2.19969294]
[1752170767586,1.6621283,675.45,674.66,2.19969294]
[1752170770085,3.48450713,675.58,674.49,2.008]
[1752170770086,1.6621283,675.46,674.65,2.19969294]
[1752170770891,1.6621283,675.46,674.64,2.19969294]
[1752170772791,1.6621283,675.46,674.5,3.29953942]
[1752170772792,1.6621283,675.46,674.65,2.19969294]
[1752170773194,1.6621283,675.46,674.64,2.19969294]
[1752170776196,1.26690473,675.59,674.62,2.19969294]
[1752170776197,1.6621283,675.47,674.62,2.19969294]
[1752170776697,1.6621283,675.46,674.64,2.19969294]
[1752170777398,1.6621283,675.46,674.63,2.19969294]
[1752170777595,1.6621283,675.46,674.64,2.19969294]
[1752170779500,1.6621283,675.46,674.63,2.19969294]
[1752170779700,1.6621283,675.46,674.65,1.859]
[1752170783498,1.6621283,675.45,674.65,1.859]
[1752170784401,1.6621283,675.44,674.65,4.05869294]
[1752170784597,1.6621283,675.44,674.65,1.859]
[1752170785999,1.6621283,675.44,674.65,4.05869294]
[1752170786402,1.6621283,675.43,674.66,2.19969294]
[1752170787403,1.6621283,675.42,674.66,2.19969294]
[1752170787599,1.6621283,675.42,674.67,2.19969294]
[1752170788001,1.6621283,675.44,674.65,1.859]
[1752170788405,1.6621283,675.43,674.65,1.859]
[1752170789301,1.6621283,675.42,674.65,4.05869294]
[1752170790403,1.6621283,675.41,674.66,2.19969294]
[1752170790608,1.6621283,675.41,674.67,2.19969294]
[1752170791309,1.6621283,675.4,674.68,2.19969294]
[1752170792206,1.6621283,675.4,674.69,2.19969294]
[1752170792506,1.6621283,675.39,674.69,2.19969294]
[1752170793013,1.6621283,675.39,674.65,1.859]
[1752170793014,1.6621283,675.4,674.67,2.19969294]
[1752170793305,1.6621283,675.4,674.68,2.19969294]
[1752170793809,1.6621283,675.4,674.67,2.19969294]
[1752170794908,1.6621283,675.4,674.68,2.19969294]
[1752170796610,1.2667576,675.55,674.65,1.859]
[1752170796611,1.6621283,675.43,674.65,1.859]
[1752170796807,1.6621283,675.42,674.65,1.859]
[1752170799005,1.6621283,675.41,674.65,1.859]
[1752170806619,1.6621283,675.37,674.72,2.19969294]
[1752170806920,1.6621283,675.38,674.71,2.19969294]
[1752170808118,1.6621283,675.38,674.72,2.19969294]
[1752170809318,1.6621283,675.37,674.72,2.19969294]
[1752170810222,1.6621283,675.38,674.71,2.19969294]
[1752170811723,1.6621283,675.38,674.7,2.19969294]
[1752170812622,1.6621283,675.43,674.65,1.859]
[1752170813122,1.6621283,675.48,674.66,2.19969294]
[1752170813619,1.6621283,675.49,674.66,2.19969294]
[1752170817223,1.6621283,675.48,674.69,2.19969294]
[1752170818125,1.6621283,675.48,674.68,2.19969294]
[1752170819624,1.6621283,675.5,674.63,2.19969294]
[1752170820226,1.6621283,675.5,674.64,2.19969294]
[1752170820427,1.6621283,675.49,674.67,2.19969294]
[1752170821532,1.6621283,675.48,674.68,3.81869294]
[1752170822530,1.6621283,675.47,674.68,3.81869294]
[1752170824738,1.6621283,675.48,674.68,3.81869294]
[1752170827238,1.6621283,675.48,674.68,1.619]
[1752170827935,0.257731,675.63,674.68,1.619]
[1752170827936,1.6621283,675.47,674.69,2.19969294]
[1752170828140,1.6621283,675.48,674.7,2.19969294]
[1752170828937,1.6621283,675.44,674.82,2.19969294]
[1752170829740,1.6621283,675.48,674.88,2.19969294]
[1752170830137,1.6621283,675.49,674.88,2.19969294]
[1752170832143,1.6621283,675.49,674.87,2.19969294]
[1752170832844,1.6621283,675.5,674.85,2.19969294]
[1752170833139,1.6621283,675.56,674.7,2.19969294]
[1752170833340,1.6621283,675.57,674.7,2.19969294]
[1752170835246,1.6621283,675.57,674.69,2.19969294]
[1752170835748,1.6621283,675.58,674.68,3.81869294]
[1752170838450,1.9198593,675.63,674.72,2.19969294]
[1752170838846,1.9198593,675.63,674.73,2.19969294]
[1752170839246,0.257731,675.63,674.73,2.19969294]
[1752170841352,1.6621283,675.59,674.86,2.19969294]
[1752170842152,1.6621283,675.6,674.86,2.19969294]
[1752170843152,1.6621283,675.59,674.87,2.19969294]
[1752170844358,1.6621283,675.58,674.9,2.19969294]
[1752170844654,1.6621283,675.58,674.91,2.19969294]
[1752170844857,1.6621283,675.58,674.92,2.19969294]
[1752170845058,1.6621283,675.58,674.91,2.19969294]
[1752170845658,1.6621283,675.58,674.92,2.19969294]
[1752170846657,1.6621283,675.59,674.88,2.19969294]
[1752170847058,1.6621283,675.6,674.87,2.19969294]
[1752170849663,1.6621283,675.62,674.82,2.19969294]
[1752170850158,1.6621283,675.62,674.83,2.296]
[1752170853862,1.6621283,675.63,674.83,2.296]
[1752170856964,1.6621283,675.62,674.83,2.296]
[1752170857970,1.6621283,675.62,674.83,4.49569294]
[1752170858172,1.6621283,675.62,674.83,2.296]
[1752170858467,1.6621283,675.62,674.83,4.49569294]
[1752170859467,1.6621283,675.6,674.87,2.19969294]
[1752170861567,1.6621283,675.59,674.87,2.19969294]
[1752170862274,1.6621283,675.59,674.88,2.19969294]
[1752170862572,1.6621283,675.59,674.89,2.19969294]
[1752170862975,1.6621283,675.58,674.89,2.19969294]
[1752170863373,1.6621283,675.58,674.9,2.19969294]
[1752170863672,1.6621283,675.57,674.93,2.19969294]
[1752170864776,1.6621283,675.56,674.92,2.19969294]
[1752170865273,1.6621283,675.55,674.93,2.19969294]
[1752170866178,1.6621283,675.56,674.94,2.19969294]
[1752170866579,1.6621283,675.56,674.93,2.19969294]
[1752170866976,1.6621283,675.55,674.94,2.19969294]
[1752170867476,1.26682993,675.65,674.94,2.19969294]
[1752170867679,1.66123983,675.55,674.94,2.19969294]
[1752170869082,1.66123983,675.55,674.95,2.19969294]
[1752170870184,1.66123983,675.55,674.93,2.19969294]
[1752170870389,1.66123983,675.55,674.94,2.19969294]
[1752170870682,1.66123983,675.55,674.93,2.19969294]
[1752170871079,1.66123983,675.56,674.93,2.19969294]
[1752170871281,0.2576852,675.7,674.93,2.19969294]
[1752170871282,1.66123983,675.55,674.93,2.19969294]
[1752170871779,1.26794621,675.66,674.83,2.296]
[1752170871780,1.66123983,675.56,674.9,2.19969294]
[1752170873182,1.66123983,675.56,674.89,2.19969294]
[1752170875285,1.66123983,675.56,674.9,2.19969294]
[1752170875585,1.66123983,675.56,674.89,2.19969294]
[1752170877481,1.66123983,675.55,674.89,2.19969294]
[1752170877685,1.66123983,675.56,674.87,2.19969294]
[1752170878483,1.66123983,675.57,674.84,2.19969294]
[1752170878882,1.66123983,675.62,674.83,2.296]
[1752170879985,1.66123983,675.69,674.83,2.296]
[1752170880185,1.66123983,675.68,674.83,2.296]
[1752170880589,1.66123983,675.53,674.92,2.19969294]
[1752170881187,1.66123983,675.53,674.93,2.19969294]
[1752170881386,1.66123983,675.53,674.92,2.19969294]
[1752170882089,1.66123983,675.52,674.9,2.19969294]
[1752170882286,1.66123983,675.57,674.78,2.19969294]
[1752170882791,1.26850207,675.56,674.75,2.19969294]
[1752170882991,1.26850207,675.55,674.75,2.19969294]
[1752170883291,1.26850207,675.57,674.75,2.19969294]
[1752170883491,1.26850207,675.56,674.75,2.19969294]
[1752170883690,1.26850207,675.56,674.57,3.29953942]
[1752170883691,1.26850207,675.57,674.76,2.19969294]
[1752170883892,1.26850207,675.56,674.76,2.19969294]
[1752170884089,1.26850207,675.57,674.76,2.19969294]
[1752170884289,1.66123983,675.58,674.76,2.19969294]
[1752170884593,1.66123983,675.53,674.72,2.19969294]
[1752170884990,1.66123983,675.53,674.73,1.68]
[1752170885192,1.66123983,675.48,674.73,1.68]
[1752170886991,1.66123983,675.47,674.73,1.68]
[1752170887393,1.66123983,675.4,674.73,1.68]
[1752170887793,1.66123983,675.39,674.73,1.68]
[1752170888595,1.66123983,675.4,674.73,1.68]
[1752170889395,1.66123983,675.41,674.73,1.68]
[1752170890497,1.66123983,675.42,674.73,1.68]
[1752170890798,1.66123983,675.46,674.73,1.68]
[1752170892501,1.66123983,675.47,674.73,1.68]
[1752170892800,0.2576852,675.7,674.73,1.68]
[1752170892801,1.66123983,675.46,674.73,1.68]
[1752170893198,1.66123983,675.47,674.73,1.68]
[1752170894302,1.66123983,675.48,674.73,1.68]
[1752170897404,1.66123983,675.49,674.73,1.68]
[1752170900607,1.66123983,675.44,674.73,1.68]
[1752170901102,1.66123983,675.43,674.73,1.68]
[1752170902105,1.66123983,675.4,674.73,1.68]
[1752170902505,1.66123983,675.39,674.73,1.68]
[1752170903103,1.66123983,675.44,674.73,1.68]
[1752170903601,1.66123983,675.45,674.73,1.68]
[1752170905708,1.66123983,675.46,674.73,1.68]
[1752170906605,1.66123983,675.51,674.73,1.68]
[1752170910313,1.66123983,675.5,674.73,1.68]
[1752170910512,1.66123983,675.51,674.73,1.68]
[1752170913721,1.66123983,675.5,674.73,1.68]
[1752170915426,1.66123983,675.51,674.73,1.68]
[1752170915623,1.66123983,675.5,674.73,1.68]
[1752170916021,1.66123983,675.51,674.73,1.68]
[1752170916223,1.66123983,675.5,674.73,1.68]
[1752170916625,1.66123983,675.43,674.73,1.68]
[1752170920222,1.66123983,675.42,674.73,1.68]
[1752170921627,1.66123983,675.44,674.73,1.68]
[1752170922121,1.66123983,675.45,674.73,1.68]
[1752170925630,1.66123983,675.48,674.73,1.68]
[1752170925831,1.66123983,675.51,674.73,1.68]
[1752170926027,1.66123983,675.55,674.73,1.68]
[1752170928234,1.66123983,675.56,674.55,0.25769283]
[1752170928434,1.66123983,675.58,674.55,0.25769283]
[1752170928834,1.66123983,675.59,674.55,0.25769283]
[1752170931233,1.66123983,675.58,674.56,2.205]
[1752170932535,1.66123983,675.55,674.58,2.19969294]
[1752170933238,1.66123983,675.53,674.62,2.19969294]
[1752170933438,0.2576852,675.7,674.65,2.19969294]
[1752170933439,1.66123983,675.57,674.65,2.19969294]
[1752170933737,1.66123983,675.57,674.56,2.205]
[1752170933738,1.66123983,675.62,674.71,2.19969294]
[1752170938241,1.66123983,675.62,674.72,2.19969294]
[1752170938541,1.66123983,675.58,674.82,2.19969294]
[1752170939242,1.66123983,675.57,674.82,2.19969294]
[1752170941141,1.66123983,675.58,674.82,2.19969294]
[1752170941341,1.66123983,675.57,674.82,2.19969294]
[1752170942745,1.66123983,675.57,674.81,2.19969294]
[1752170943148,1.66123983,675.64,674.63,2.19969294]
[1752170945345,1.66123983,675.65,674.62,2.19969294]
[1752170945750,1.66123983,675.64,674.62,2.19969294]
[1752170946444,1.66123983,675.65,674.62,2.19969294]
[1752170948251,1.66123983,675.66,674.62,2.19969294]
[1752170948848,1.66123983,675.66,674.63,2.19969294]
[1752170949052,1.66123983,675.67,674.84,1.65028349]
[1752170949447,1.66123983,675.67,674.83,1.65028349]
[1752170951454,1.66123983,675.67,674.82,1.65028349]
[1752170952762,1.66123983,675.68,674.82,1.65028349]
[1752170952951,1.66123983,675.64,674.87,1.65028349]
[1752170954452,1.66123983,675.63,674.88,1.65028349]
[1752170955354,1.66123983,675.64,674.88,1.65028349]
[1752170955554,1.66123983,675.61,674.92,1.65028349]
[1752170955758,1.66123983,675.62,674.91,1.65028349]
[1752170957761,0.2576852,675.7,674.75,2.19969294]
[1752170957959,1.65925447,675.62,674.91,1.64949737]
[1752170959063,1.65925447,675.62,674.92,2.028]
[1752170959362,1.65925447,675.67,674.92,2.028]
[1752170959561,1.65925447,675.65,674.92,2.028]
[1752170959759,1.65925447,675.6,674.92,2.028]
[1752170960061,1.65925447,675.59,674.92,2.028]
[1752170961562,1.65925447,675.58,674.92,2.028]
[1752170962159,1.65925447,675.59,674.92,2.028]
[1752170962761,1.65925447,675.58,674.92,2.028]
[1752170964666,0.2576852,675.7,674.92,2.028]
[1752170964866,1.65977772,675.58,674.92,2.028]
[1752170966661,1.65977772,675.57,674.92,2.028]
[1752170967963,1.65977772,675.56,674.92,2.028]
[1752170968883,1.65977772,675.54,674.92,2.028]
[1752170969068,1.65977772,675.52,674.92,2.028]
[1752170969466,1.65977772,675.51,674.92,2.028]
[1752170970169,1.65977772,675.52,674.92,2.028]
[1752170970374,1.65977772,675.51,674.92,2.028]
[1752170971871,1.65977772,675.49,674.92,2.028]
[1752170974277,1.65977772,675.48,674.92,2.028]
[1752170974480,1.26399101,675.62,674.92,2.028]
[1752170974481,1.65977772,675.47,674.92,2.028]
[1752170975281,1.65977772,675.47,674.92,3.67839588]
[1752170976880,1.65977772,675.47,674.92,2.028]
[1752170977483,1.65977772,675.47,674.92,3.67839588]
[1752170978284,1.65977772,675.46,674.92,3.67839588]
[1752170979288,1.65977772,675.47,674.92,3.67839588]
[1752170979483,1.65977772,675.46,674.92,3.67839588]
[1752170979784,1.65977772,675.46,674.92,2.028]
[1752170980488,1.65977772,675.45,674.92,3.67839588]
[1752170980785,1.65977772,675.46,674.92,2.028]
[1752170981589,1.65977772,675.46,674.92,3.67839588]
[1752170982488,1.65977772,675.45,674.92,3.67839588]
[1752170982687,1.65977772,675.46,674.92,3.67839588]
[1752170983485,1.65977772,675.45,674.93,1.65039588]
[1752170984489,1.65977772,675.45,674.94,1.65039588]
[1752170985492,1.65977772,675.44,674.94,1.65039588]
[1752170987202,1.65977772,675.46,674.92,2.028]
[1752170990799,1.65977772,675.45,674.92,2.028]
[1752170990995,1.65977772,675.46,674.92,2.028]
[1752170991300,1.65977772,675.58,674.92,2.028]
[1752170991496,1.65977772,675.53,674.92,2.028]
[1752170991704,1.65977772,675.52,674.92,2.028]
[1752170992104,1.65977772,675.42,674.92,2.028]
[1752170992499,1.65977772,675.43,674.92,2.028]
[1752170992694,1.65977772,675.42,674.92,2.028]
[1752170993298,1.65977772,675.43,674.92,2.028]
[1752170993496,1.65977772,675.42,674.92,2.028]
[1752170993894,1.65977772,675.36,674.92,2.028]
[1752170994095,1.65977772,675.32,674.92,2.028]
[1752170994595,1.65977772,675.33,674.92,2.028]
[1752170994799,1.65977772,675.32,674.92,2.028]
[1752170995299,1.65977772,675.33,674.92,2.028]
[1752170995594,0.2576852,675.7,674.92,2.028]
[1752170995595,1.65977772,675.32,674.92,2.028]
[1752170996295,1.65977772,675.33,674.92,2.028]
[1752170997099,1.65977772,675.38,674.92,2.028]
[1752170997297,1.65977772,675.36,674.92,2.028]
[1752170997497,1.65977772,675.37,674.92,2.028]
[1752170999501,1.65977772,675.38,674.92,2.028]
[1752170999896,1.65977772,675.33,674.92,2.028]
[1752171001400,1.65977772,675.34,674.92,2.028]
[1752171002297,1.65977772,675.31,674.92,2.028]
[1752171004097,0.2576852,675.7,674.92,2.028]
[1752171004098,1.65977772,675.34,674.92,2.028]
[1752171004998,1.65977772,675.35,674.92,2.028]
[1752171006197,2.2176024,675.53,674.92,2.028]
[1752171006397,1.65928367,675.35,674.92,2.028]
[1752171006597,1.65928367,675.36,674.92,2.028]
[1752171006801,1.65928367,675.4,674.92,2.028]
[1752171007199,1.65928367,675.41,674.92,2.028]
[1752171008602,0.2576852,675.7,674.92,2.028]
[1752171008603,1.65928367,675.42,674.92,2.028]
[1752171008898,1.65928367,675.45,674.92,2.028]
[1752171009102,1.65928367,675.43,674.92,2.028]
[1752171009902,1.65928367,675.45,674.92,2.028]
[1752171010697,1.65928367,675.46,674.92,2.028]
[1752171012401,1.65928367,675.45,674.92,2.028]
[1752171013800,1.65928367,675.46,674.92,2.028]
[1752171016108,1.65928367,675.45,674.92,2.028]
[1752171017107,1.65928367,675.45,674.51,2.19969294]
[1752171018104,1.65928367,675.45,674.52,2.19969294]
[1752171018308,1.65928367,675.44,674.53,2.19969294]
[1752171019809,1.65928367,675.43,674.55,2.19969294]
[1752171020409,1.65928367,675.43,674.56,2.148]
[1752171020909,1.65928367,675.44,674.56,2.148]
[1752171021804,1.65928367,675.43,674.56,2.148]
[1752171022012,1.65928367,675.44,674.56,2.148]
[1752171022211,1.65928367,675.43,674.56,2.148]
[1752171022411,1.65928367,675.49,674.6,2.19969294]
[1752171024014,1.65928367,675.49,674.59,2.19969294]
[1752171026508,1.65928367,675.49,674.6,2.19969294]
[1752171027116,1.65928367,675.48,674.62,2.19969294]
[1752171028814,1.65928367,675.47,674.63,2.19969294]
[1752171029010,1.65928367,675.48,674.64,2.19969294]
[1752171029710,1.65928367,675.46,674.69,2.19969294]
[1752171032913,1.65928367,675.49,674.75,2.19969294]
[1752171034612,1.65928367,675.55,674.62,2.19969294]
[1752171036518,1.65928367,675.55,674.63,2.19969294]
[1752171036919,1.65928367,675.55,674.64,1.56]
[1752171039019,0.2576852,675.7,674.64,1.56]
[1752171039319,1.66024784,675.55,674.64,1.56]
[1752171044126,1.66023079,675.55,674.64,1.56]
[1752171044624,1.66023079,675.52,674.68,2.19969294]
[1752171048725,1.66023079,675.53,674.67,2.19969294]
[1752171049425,1.66023079,675.51,674.7,2.19969294]
[1752171049923,1.66023079,675.51,674.71,2.19969294]
[1752171052331,1.66023079,675.51,674.72,2.19969294]
[1752171052625,1.66023079,675.51,674.64,1.56]
[1752171052626,1.66023079,675.55,674.64,1.56]
[1752171053131,1.66023079,675.63,674.69,2.19969294]
[1752171053328,1.66023079,675.64,674.68,2.19969294]
[1752171053527,1.66023079,675.63,674.67,2.19969294]
[1752171053730,1.66023079,675.64,674.67,2.19969294]
[1752171053927,1.66023079,675.65,674.69,2.19969294]
[1752171054128,1.66023079,675.66,674.69,2.19969294]
[1752171054729,1.66023079,675.67,674.65,2.19969294]
[1752171055030,1.66023079,675.68,674.68,2.19969294]
[1752171055228,1.66023079,675.68,674.67,2.19969294]
[1752171055629,1.66023079,675.66,674.73,2.19969294]
[1752171055828,1.66023079,675.7,674.76,2.19969294]
[1752171056427,1.66023079,675.71,674.76,2.19969294]
[1752171057129,1.66023079,675.71,674.75,2.19969294]
[1752171057633,1.66023079,675.76,674.81,2.19969294]
[1752171057933,1.66023079,675.75,674.85,2.19969294]
[1752171059133,1.66023079,675.75,674.84,2.19969294]
[1752171059333,1.66023079,675.76,674.83,2.19969294]
[1752171059534,1.66023079,675.76,674.84,2.19969294]
[1752171060235,1.66023079,675.76,674.82,2.19969294]
[1752171061635,1.66023079,675.77,674.8,2.19969294]
[1752171061836,1.66023079,675.77,674.79,2.19969294]
[1752171062239,1.66023079,675.77,674.8,2.19969294]
[1752171062536,1.66023079,675.77,674.79,2.19969294]
[1752171062934,0.25767185,675.78,674.73,2.19969294]
[1752171063235,1.66023079,675.72,674.65,2.19969294]
[1752171063839,1.66023079,675.71,674.64,3.75969294]
[1752171064137,1.66023079,675.71,674.65,2.19969294]
[1752171064338,1.66023079,675.7,674.67,2.19969294]
[1752171064839,1.66023079,675.7,674.66,2.19969294]
[1752171065339,1.66023079,675.7,674.67,2.19969294]
[1752171065634,1.66023079,675.69,674.68,2.19969294]
[1752171065934,1.66023079,675.69,674.69,2.19969294]
[1752171066236,1.66023079,675.67,674.73,2.19969294]
[1752171069538,1.66023079,675.65,674.78,2.19969294]
[1752171071848,1.66023079,675.65,674.77,2.19969294]
[1752171072549,1.66023079,675.61,674.74,2.19969294]
[1752171072746,1.66023079,675.61,674.75,2.19969294]
[1752171073249,1.66023079,675.61,674.64,1.56]
[1752171073250,1.66023079,675.61,674.76,2.19969294]
[1752171073953,1.66023079,675.61,674.75,2.19969294]
[1752171075152,1.66023079,675.61,674.76,2.19969294]
[1752171075553,1.66023079,675.59,674.79,2.19969294]
[1752171078253,1.66023079,675.59,674.8,2.19969294]
[1752171078454,1.66023079,675.59,674.79,2.19969294]
[1752171080159,1.66023079,675.59,674.64,1.56]
[1752171080160,1.66023079,675.59,674.8,2.19969294]
[1752171080657,1.66023079,675.57,674.82,2.19969294]
[1752171080862,1.66023079,675.57,674.83,2.19969294]
[1752171083159,1.66023079,675.56,674.83,2.19969294]
[1752171083857,1.66023079,675.56,674.84,2.19969294]
[1752171084261,1.66023079,675.56,674.85,2.19969294]
[1752171085462,1.66023079,675.55,674.85,2.19969294]
[1752171086063,1.66023079,675.56,674.84,2.19969294]
[1752171087763,1.66023079,675.56,674.83,2.19969294]
[1752171088360,1.66023079,675.55,674.84,2.19969294]
[1752171088564,1.66023079,675.55,674.85,2.19969294]
[1752171088760,1.66023079,675.55,674.84,2.19969294]
[1752171089158,1.66023079,675.54,674.87,2.19969294]
[1752171089460,1.66023079,675.55,674.86,2.19969294]
[1752171089864,1.66023079,675.55,674.87,1.53]
[1752171090164,1.66023079,675.54,674.87,3.72969294]
[1752171091664,1.66023079,675.57,674.87,1.53]
[1752171094761,1.66023079,675.56,674.87,1.53]
[1752171098667,1.66023079,675.57,674.87,1.53]
[1752171099267,1.66023079,675.56,674.87,1.53]
[1752171101868,1.26625569,675.71,674.87,1.53]
[1752171102063,1.2666151,675.77,674.87,1.53]
[1752171102363,1.2666151,675.76,674.87,1.53]
[1752171102565,1.2666151,675.75,674.87,1.53]
[1752171102763,1.2666151,675.77,674.87,1.53]
[1752171103066,1.2666151,675.76,674.87,1.53]
[1752171103267,0.25767185,675.78,674.87,1.53]
[1752171106270,1.66198653,675.64,674.87,1.53]
[1752171108570,1.66198653,675.63,674.87,1.53]
[1752171111774,1.66198653,675.67,674.87,1.53]
[1752171112674,1.66198653,675.66,674.87,3.7310703]
[1752171113067,1.66198653,675.62,674.95,2.2010703]
[1752171113367,1.66198653,675.63,674.95,2.2010703]
[1752171114770,1.66198653,675.63,674.94,2.2010703]
[1752171114970,1.66198653,675.63,674.95,2.2010703]
[1752171115270,1.66198653,675.62,674.96,2.2010703]
[1752171115473,1.66198653,675.61,674.99,2.2010703]
[1752171116069,1.66198653,675.62,674.98,2.2010703]
[1752171116273,1.66198653,675.62,674.97,2.2010703]
[1752171116574,1.66198653,675.64,674.91,2.2010703]
[1752171119071,1.66198653,675.64,674.76,3.30160545]
[1752171119072,1.66198653,675.64,674.93,2.2010703]
[1752171120071,1.66198653,675.67,674.96,2.2010703]
[1752171120571,1.66198653,675.67,674.97,2.15]
[1752171122276,1.66198653,675.68,674.97,2.15]
[1752171122570,1.66198653,675.67,674.97,2.15]
[1752171122976,0.25767185,675.78,674.97,2.15]
[1752171122977,1.66198653,675.66,674.97,2.15]
[1752171124279,1.66198653,675.67,674.97,2.15]
[1752171124577,1.66198653,675.64,674.98,2.2010703]
[1752171126273,1.66198653,675.65,674.97,2.15]
[1752171127075,1.66198653,675.67,674.97,2.15]
[1752171127277,1.66198653,675.65,674.97,2.15]
[1752171129276,1.66198653,675.61,675.02,2.2010703]
[1752171129577,1.66198653,675.61,675.01,2.2010703]
[1752171129877,1.66198653,675.65,674.97,2.15]
[1752171130079,1.66198653,675.64,674.97,2.15]
[1752171131777,1.66198653,675.56,674.97,2.15]
[1752171131977,1.66198653,675.55,674.97,2.15]
[1752171132880,1.66198653,675.53,674.97,2.15]
[1752171133079,1.66198653,675.52,674.97,2.15]
[1752171133779,1.66198653,675.61,674.97,2.15]
[1752171134878,1.66198653,675.6,674.97,2.15]
[1752171136080,1.66198653,675.54,674.97,2.15]
[1752171136280,1.66198653,675.55,674.97,2.15]
[1752171137283,1.66198653,675.54,674.97,2.15]
[1752171137480,1.66198653,675.55,674.97,2.15]
[1752171137980,1.66198653,675.57,674.97,2.15]
[1752171138180,1.66198653,675.53,674.97,2.15]
[1752171138680,1.66198653,675.51,674.97,2.15]
[1752171140282,1.66198653,675.52,674.97,2.15]
[1752171141390,1.66198653,675.53,674.97,2.15]
[1752171142290,1.66198653,675.5,674.97,2.15]
[1752171142586,1.66198653,675.55,674.97,2.15]
[1752171142794,1.66198653,675.64,674.97,2.15]
[1752171143592,1.66198653,675.64,674.55,2.2010703]
[1752171144587,0.25767185,675.78,674.55,2.2010703]
[1752171144588,1.66198653,675.65,674.55,2.2010703]
[1752171144788,1.66198653,675.63,674.54,2.2010703]
[1752171145392,1.66198653,675.64,674.55,2.2010703]
[1752171146395,0.25767185,675.78,674.55,2.2010703]
[1752171146596,1.66002971,675.64,674.55,2.2010703]
[1752171147496,1.66002971,675.65,674.56,1.619]
[1752171147692,1.66002971,675.63,674.57,2.2010703]
[1752171148393,1.66002971,675.62,674.59,2.2010703]
[1752171148593,1.66002971,675.58,674.7,2.2010703]
[1752171149298,1.26712845,675.74,674.78,2.2010703]
[1752171149594,1.65972349,675.67,674.78,2.2010703]
[1752171150293,1.65972349,675.67,674.79,2.2010703]
[1752171150496,1.65972349,675.67,674.78,2.2010703]
[1752171150799,1.65972349,675.67,674.79,2.2010703]
[1752171150999,1.65972349,675.68,674.79,2.2010703]